bitfinex/quotes_SOLUSD_20251231
["timestamp","ask_amount","ask_price","bid_price","bid_amount"]
[1767144486593,3.20904971,125.73,125.7,0.65]
[1767144488142,2.50904971,125.73,125.71,0.65]
[1767144490130,0.7,125.74,125.72,0.65]
[1767144490332,15.24,125.74,125.72,0.65]
[1767144493629,14.54,125.74,125.72,0.65]
[1767144496234,0.1,125.75,125.73,0.65]
[1767144502240,0.1,125.75,125.73,7.95338589]
[1767144502445,15.2,125.78,125.74,0.71]
[1767144503121,0.66,125.78,125.75,0.71]
[1767144506452,3.16904971,125.78,125.75,0.71]
[1767144506835,2.50904971,125.78,125.75,0.71]
[1767144507034,3.16904971,125.78,125.75,0.71]
[1767144507435,2.50904971,125.77,125.75,0.71]
[1767144507848,3.16904971,125.76,125.72,8.66371249]
[1767144508026,2.60904971,125.79,125.72,8.66371249]
[1767144508027,3.16904971,125.75,125.72,8.66371249]
[1767144508652,3.16904971,125.75,125.71,7.95481664]
[1767144508825,3.16904971,125.75,125.72,0.71]
[1767144511751,0.66,125.72,125.69,7.95580154]
[1767144511929,3.16904971,125.71,125.68,8.66641551]
[1767144512134,3.16904971,125.71,125.68,0.71]
[1767144516163,0.66,125.71,125.68,0.71]
[1767144516362,14.52,125.72,125.69,0.71]
[1767144516733,17.70904971,125.73,125.69,0.71]
[1767144517029,3.16904971,125.72,125.69,0.71]
[1767144519457,2.50904971,125.71,125.68,7.95637727]
[1767144519633,3.16904971,125.71,125.67,8.6672129]
[1767144521157,3.16904971,125.7,125.67,0.71]
[1767144521641,0.66,125.7,125.67,0.71]
[1767144521842,3.16904971,125.7,125.67,0.71]
[1767144523564,3.16904971,125.69,125.67,0.71]
[1767144523951,0.66,125.69,125.67,0.71]
[1767144524262,3.16904971,125.7,125.67,0.71]
[1767144530946,3.16904971,125.7,125.67,8.6673013]
[1767144531144,17.71904971,125.71,125.68,0.66]
[1767144533381,3.17904971,125.7,125.68,0.66]
[1767144535342,2.50904971,125.7,125.68,0.66]
[1767144535649,2.50904971,125.7,125.68,8.61660129]
[1767144535846,14.54,125.73,125.69,0.66]
[1767144535847,0.67,125.73,125.69,0.66]
[1767144536044,17.71904971,125.73,125.69,0.66]
[1767144536469,0.67,125.72,125.69,0.66]
[1767144536867,0.67,125.72,125.69,8.6160322]
[1767144539064,0.67,125.72,125.69,11.12508191]
[1767144539252,0.67,125.72,125.7,0.66]
[1767144540367,17.04904971,125.73,125.7,0.66]
[1767144540971,17.71904971,125.73,125.7,0.66]
[1767144542769,17.71904971,125.73,125.7,8.61542726]
[1767144543871,14.54,125.73,125.71,0.72]
[1767144544072,3.22904971,125.75,125.72,0.72]
[1767144544264,0.72,125.75,125.73,0.72]
[1767144544572,17.04904971,125.76,125.73,0.69000001]
[1767144544573,17.76904971,125.76,125.73,0.69000001]
[1767144544769,0.72,125.76,125.73,3.19904972]
[1767144544972,0.72,125.77,125.73,2.50904971]
[1767144545470,0.72,125.77,125.74,2.50904971]
[1767144545679,0.72,125.77,125.73,2.50904971]
[1767144546066,0.72,125.77,125.73,10.46224156]
[1767144546449,0.72,125.77,125.74,0.72]
[1767144546654,3.22904971,125.77,125.74,0.72]
[1767144546856,0.72,125.77,125.74,0.72]
[1767144548073,0.72,125.77,125.74,11.18171376]
[1767144548461,0.72,125.77,125.74,12.59003919]
[1767144549577,0.72,125.77,125.74,0.72]
[1767144553562,4.63737514,125.77,125.74,0.72]
[1767144553874,19.17737514,125.77,125.74,0.72]
[1767144554581,3.91737514,125.76,125.72,8.6739436]
[1767144554781,14.54,125.77,125.72,8.6739436]
[1767144554782,4.63737514,125.75,125.72,0.72]
[1767144556184,0.72,125.75,125.72,0.72]
[1767144556482,19.15737514,125.76,125.73,0.67]
[1767144556977,27.10936983,125.76,125.73,0.67]
[1767144557180,27.10936983,125.76,125.72,3.91737514]
[1767144557181,0.7,125.75,125.72,4.58737514]
[1767144558773,0.7,125.75,125.73,0.67]
[1767144559671,14.54,125.76,125.73,0.67]
[1767144559872,15.24,125.76,125.73,4.58737514]
[1767144560174,0.7,125.76,125.73,4.58737514]
[1767144561880,0.7,125.76,125.73,0.67]
[1767144567377,4.61737514,125.76,125.73,0.67]
[1767144568092,0.7,125.76,125.73,0.67]
[1767144568593,0.7,125.75,125.73,0.67]
[1767144570691,4.61737514,125.75,125.73,0.67]
[1767144570867,0.7,125.75,125.73,0.67]
[1767144571884,4.61737514,125.75,125.73,0.67]
[1767144574385,0.7,125.73,125.68,26.41380342]
[1767144574593,18.43737514,125.74,125.68,26.41380342]
[1767144574594,4.61737514,125.72,125.69,0.67]
[1767144574774,0.7,125.72,125.69,0.67]
[1767144574974,4.61737514,125.73,125.7,0.67]
[1767144576082,0.7,125.73,125.7,0.67]
[1767144578172,4.61737514,125.73,125.7,0.67]
[1767144587684,4.60737514,125.73,125.7,0.67]
[1767144588902,0.69,125.71,125.65,19.89561367]
[1767144589091,4.60737514,125.71,125.68,0.68]
[1767144592712,4.60737514,125.71,125.68,8.63666854]
[1767144594929,0.69,125.71,125.68,12.55404368]
[1767144595226,0.69,125.71,125.69,0.68]
[1767144600512,3.91737514,125.73,125.7,0.68]
[1767144600906,4.60737514,125.73,125.7,0.68]
[1767144602113,0.69,125.73,125.7,0.68]
[1767144604309,0.69,125.74,125.71,3.91737514]
[1767144604519,0.69,125.74,125.72,0.68]
[1767144605212,0.68,125.75,125.71,0.68]
[1767144605411,4.59737514,125.75,125.72,0.68]
[1767144605717,0.68,125.75,125.72,0.68]
[1767144607292,0.68,125.75,125.72,8.63410641]
[1767144607613,0.68,125.75,125.73,0.68]
[1767144607808,19.13737514,125.76,125.73,0.68]
[1767144608112,4.59737514,125.76,125.73,0.68]
[1767144608521,3.18776617,125.76,125.73,0.68]
[1767144610121,17.04776617,125.77,125.74,0.68]
[1767144610317,0.68,125.78,125.74,0.68]
[1767144610318,3.18776617,125.78,125.74,0.68]
[1767144610615,3.18776617,125.78,125.74,8.63285224]
[1767144610616,14.50407428,125.77,125.74,8.63285224]
[1767144610918,3.18776617,125.77,125.74,8.63285224]
[1767144611513,0.68,125.77,125.75,0.68]
[1767144612123,0.78,125.79,125.76,0.68]
[1767144613003,0.1,125.79,125.77,0.68]
[1767144613934,0.1,125.79,125.78,0.68]
[1767144614440,0.1,125.83,125.79,0.68]
[1767144614647,0.78,125.85,125.82,0.68]
[1767144614802,0.78,125.85,125.82,3.15776618]
[1767144615003,5.9447098,125.84,125.82,3.15776618]
[1767144615203,3.28776617,125.85,125.82,0.65000001]
[1767144615404,0.78,125.85,125.82,0.65000001]
[1767144615821,3.28776617,125.85,125.82,0.65000001]
[1767144616136,3.18776617,125.84,125.8,7.94894675]
[1767144616317,2.50776617,125.84,125.8,7.94894675]
[1767144616929,2.50776617,125.84,125.81,0.69]
[1767144617802,0.71,125.81,125.75,22.38145081]
[1767144618008,2.50776617,125.79,125.76,8.64122018]
[1767144620029,2.50776617,125.8,125.76,0.69]
[1767144620346,17.73776617,125.81,125.77,0.69]
[1767144623338,2.50776617,125.8,125.77,0.69]
[1767144624617,2.50776617,125.8,125.77,8.64092868]
[1767144624913,3.21776617,125.8,125.77,8.64092868]
[1767144627043,3.21776617,125.8,125.77,0.69]
[1767144629120,22.46789736,125.82,125.75,0.69]
[1767144629121,2.50776617,125.78,125.75,0.69]
[1767144629441,3.21776617,125.76,125.73,8.64352155]
[1767144630523,2.50776617,125.76,125.73,0.69]
[1767144633137,2.50776617,125.76,125.73,7.95325201]
[1767144633348,2.50776617,125.76,125.74,0.69]
[1767144633546,3.21776617,125.77,125.74,0.69]
[1767144634750,2.50776617,125.76,125.74,0.69]
[1767144635321,3.21776617,125.77,125.74,0.69]
[1767144635530,2.50776617,125.76,125.74,0.69]
[1767144638253,3.21776617,125.77,125.74,0.69]
[1767144648636,0.71,125.77,125.74,0.69]
[1767144648962,2.50776617,125.76,125.74,0.69]
[1767144649446,3.21776617,125.77,125.74,0.69]
[1767144650455,0.65,125.79,125.76,0.66]
[1767144651154,3.15776617,125.79,125.76,0.66]
[1767144659369,0.65,125.79,125.76,0.66]
[1767144659754,3.15776617,125.79,125.76,0.66]
[1767144660065,3.15776617,125.79,125.76,8.61164237]
[1767144660265,0.65,125.79,125.76,8.61164237]
[1767144660462,0.65,125.79,125.76,7.95164237]
[1767144660765,0.71,125.8,125.77,0.66]
[1767144662262,7.94790491,125.82,125.77,0.66]
[1767144662263,2.50776617,125.82,125.78,0.66]
[1767144662565,5.9504095,125.81,125.79,0.66]
[1767144662868,3.21776617,125.82,125.79,0.66]
[1767144663063,5.95039805,125.81,125.79,0.66]
[1767144663239,3.21776617,125.82,125.79,0.66]
[1767144663440,0.71,125.8,125.77,8.61085782]
[1767144663641,3.21776617,125.79,125.76,0.66]
[1767144666043,3.21776617,125.79,125.76,8.61163611]
[1767144666243,0.71,125.79,125.76,8.61163611]
[1767144667570,3.21776617,125.79,125.76,8.61163611]
[1767144667955,0.71,125.79,125.76,8.61163611]
[1767144671569,4.62621052,125.79,125.76,8.61163611]
[1767144673572,0.71,125.79,125.76,8.61163611]
[1767144673764,4.62621052,125.79,125.76,8.61163611]
[1767144674149,4.62621052,125.77,125.74,8.61270796]
[1767144674555,0.71,125.79,125.75,8.61223083]
[1767144674747,10.58319505,125.78,125.75,8.61223083]
[1767144674947,4.62621052,125.78,125.75,8.61223083]
[1767144677259,4.62621052,125.78,125.75,0.66]
[1767144677467,0.71,125.77,125.74,8.66248912]
[1767144677650,4.62621052,125.77,125.74,8.66248912]
[1767144678954,4.62621052,125.76,125.74,7.95248912]
[1767144679150,4.62621052,125.75,125.71,39.03220465]
[1767144679357,4.62621052,125.75,125.72,0.71]
[1767144679559,4.62621052,125.75,125.72,8.66405641]
[1767144680964,3.91621052,125.74,125.72,0.71]
[1767144685582,3.91621052,125.74,125.71,7.95462779]
[1767144685757,4.62621052,125.74,125.71,8.66462779]
[1767144687780,3.91621052,125.74,125.71,0.71]
[1767144687970,4.62621052,125.73,125.71,0.71]
[1767144688298,0.71,125.73,125.71,8.66433753]
[1767144688661,3.91621052,125.74,125.71,8.66433753]
[1767144689176,4.62621052,125.74,125.71,8.66433753]
[1767144689982,0.71,125.76,125.72,0.71]
[1767144690159,3.91621052,125.79,125.72,0.71]
[1767144690160,0.71,125.79,125.75,0.71]
[1767144690364,0.71,125.78,125.75,0.71]
[1767144690773,3.91621052,125.79,125.75,3.91621052]
[1767144690984,3.91621052,125.79,125.76,0.71]
[1767144691167,4.62621052,125.79,125.76,0.71]
[1767144691367,3.91621052,125.79,125.75,3.91621052]
[1767144691681,0.71,125.78,125.75,4.62621052]
[1767144692183,0.71,125.78,125.75,12.57817752]
[1767144693386,0.71,125.78,125.73,19.88300931]
[1767144693387,4.62621052,125.8,125.77,0.71]
[1767144693686,0.71,125.8,125.77,4.62621052]
[1767144693987,4.62621052,125.81,125.78,0.71]
[1767144695504,3.91621052,125.82,125.79,0.71]
[1767144695668,4.62621052,125.82,125.79,0.71]
[1767144695865,0.71,125.82,125.79,0.71]
[1767144696066,3.91621052,125.83,125.79,0.71]
[1767144696265,4.62621052,125.83,125.8,0.71]
[1767144697603,14.52,125.84,125.81,0.71]
[1767144698069,15.23,125.84,125.81,0.71]
[1767144698269,0.71,125.84,125.81,4.62621052]
[1767144699278,0.71,125.84,125.81,0.71]
[1767144699697,0.71,125.84,125.81,8.65834943]
[1767144700095,0.71,125.84,125.81,0.71]
[1767144700897,0.71,125.84,125.81,8.65807079]
[1767144701099,3.91621052,125.83,125.79,7.94914511]
[1767144701279,0.71,125.82,125.79,12.57536044]
[1767144701480,0.71,125.82,125.8,7.94904038]
[1767144701798,0.71,125.84,125.81,8.65849272]
[1767144702097,0.1,125.85,125.82,0.71]
[1767144702272,0.1,125.85,125.83,0.71]
[1767144702676,0.1,125.85,125.83,4.62621052]
[1767144703801,4.72621052,125.88,125.84,12.57251796]
[1767144705304,0.71,125.87,125.84,8.65630744]
[1767144705794,4.62621052,125.87,125.84,8.65630744]
[1767144707295,0.1,125.88,125.85,4.59621052]
[1767144707891,0.1,125.88,125.86,4.59621052]
[1767144708497,0.1,125.88,125.84,27.81280457]
[1767144708700,4.68621052,125.88,125.84,32.40901509]
[1767144708879,0.67,125.87,125.85,3.91621052]
[1767144709079,0.77,125.88,125.84,32.40901509]
[1767144709303,4.68621052,125.88,125.84,32.40901509]
[1767144709670,4.68621052,125.88,125.85,8.62548276]
[1767144709985,4.68621052,125.88,125.84,8.62650884]
[1767144710609,3.91621052,125.87,125.84,8.62650884]
[1767144711320,0.77,125.88,125.84,8.62650884]
[1767144711481,4.68621052,125.88,125.84,8.62650884]
[1767144711800,4.68621052,125.88,125.85,7.94594336]
[1767144714004,0.77,125.88,125.85,7.94594336]
[1767144714408,0.77,125.88,125.85,12.54215388]
[1767144714596,0.1,125.88,125.86,12.54121715]
[1767144715312,0.1,125.88,125.86,8.62500663]
[1767144715497,0.1,125.88,125.85,11.86193088]
[1767144715703,0.77,125.88,125.85,12.54193088]
[1767144716508,0.77,125.88,125.86,7.94516715]
[1767144717311,4.68621052,125.88,125.85,8.62567925]
[1767144717505,4.68621052,125.88,125.85,7.94567925]
[1767144717906,4.68621052,125.88,125.85,8.62567925]
[1767144720418,0.67,125.87,125.85,7.94567925]
[1767144721080,0.67,125.87,125.85,11.86188977]
[1767144721286,0.77,125.88,125.85,12.54188977]
[1767144723325,0.77,125.88,125.85,8.62567925]
[1767144723514,0.77,125.88,125.85,12.54188977]
[1767144723689,4.58621052,125.86,125.84,7.94634979]
[1767144723890,4.58621052,125.86,125.83,8.63714754]
[1767144724106,0.67,125.86,125.83,8.63714754]
[1767144724592,0.67,125.86,125.83,12.55335806]
[1767144724783,0.67,125.86,125.83,8.63714754]
[1767144725022,0.67,125.86,125.83,12.55335806]
[1767144726315,0.67,125.86,125.84,11.86269763]
[1767144726494,0.67,125.87,125.84,12.55269763]
[1767144729492,0.67,125.86,125.84,7.94648711]
[1767144732097,0.67,125.86,125.83,12.55317067]
[1767144732601,0.67,125.86,125.83,11.14011478]
[1767144733022,0.67,125.86,125.83,2.50315463]
[1767144734920,0.67,125.86,125.83,2.85315463]
[1767144735323,0.67,125.86,125.83,10.80011478]
[1767144735522,0.67,125.86,125.83,8.29696015]
[1767144738356,2.50315463,125.86,125.82,8.29754351]
[1767144738627,0.7,125.85,125.82,8.29754351]
[1767144739200,0.7,125.84,125.81,7.94823425]
[1767144739407,0.7,125.83,125.8,7.94872569]
[1767144739717,0.7,125.83,125.8,8.29872569]
[1767144739917,0.7,125.83,125.78,36.89801213]
[1767144739918,0.1,125.88,125.78,14.52]
[1767144740099,0.8,125.88,125.84,0.35]
[1767144740299,0.8,125.88,125.8,8.29887274]
[1767144740300,0.7,125.84,125.8,8.29887274]
[1767144740607,0.7,125.83,125.8,8.29887274]
[1767144741511,0.6707783,125.83,125.8,8.29887274]
[1767144741823,2.50315463,125.85,125.81,0.38]
[1767144743444,0.7,125.84,125.81,8.32787368]
[1767144745028,0.7,125.84,125.81,7.94787368]
[1767144746820,0.7,125.83,125.8,7.94883034]
[1767144747025,0.7,125.83,125.8,8.32883034]
[1767144753010,3.20315463,125.85,125.81,0.38]
[1767144753211,0.7,125.84,125.81,0.38]
[1767144753412,0.7,125.84,125.81,8.32818967]
[1767144754730,2.50315463,125.86,125.82,0.38]
[1767144754934,0.7,125.85,125.82,0.38]
[1767144755434,0.7,125.85,125.82,8.32774838]
[1767144756435,0.7,125.85,125.82,7.94774838]
[1767144757320,0.7,125.85,125.82,8.32774838]
[1767144757919,0.7,125.87,125.84,0.38]
[1767144758137,0.8,125.88,125.85,0.38]
[1767144759835,0.8,125.88,125.85,8.32536127]
[1767144761438,0.7,125.87,125.84,7.9463414]
[1767144761735,0.7,125.87,125.84,8.3263414]
[1767144763031,0.7,125.87,125.84,10.82949603]
[1767144764240,0.7,125.87,125.84,30.69599316]
[1767144766957,0.7,125.87,125.84,7.9463414]
[1767144771048,0.7,125.87,125.84,2.88315463]
[1767144771341,0.76,125.88,125.85,0.38]
[1767144773146,0.76,125.88,125.85,8.32554067]
[1767144776431,0.76,125.88,125.85,10.8286953]
[1767144778950,0.76,125.88,125.85,8.32554067]
[1767144780448,6.60829165,125.89,125.87,2.88315463]
[1767144780646,0.82,125.92,125.85,27.81045922]
[1767144780850,0.72,125.9,125.86,2.50315463]
[1767144781054,0.72,125.9,125.87,7.94470485]
[1767144784030,2.50315463,125.89,125.85,7.94536677]
[1767144784237,0.72,125.88,125.85,7.94536677]
[1767144784637,0.72,125.88,125.86,7.94522421]
[1767144786050,0.72,125.88,125.84,22.36849668]
[1767144786241,0.72,125.88,125.85,7.94596742]
[1767144787948,0.72,125.87,125.84,7.94629479]
[1767144788661,0.72,125.84,125.81,7.9481812]
[1767144788873,3.22315463,125.84,125.81,7.9481812]
[1767144789662,0.72,125.84,125.81,7.9481812]
[1767144789958,0.72,125.84,125.82,7.94773321]
[1767144790461,0.69073669,125.84,125.81,7.94849376]
[1767144791146,0.66045234,125.84,125.81,7.94849376]
[1767144793664,0.66045234,125.84,125.81,11.92132003]
[1767144794167,0.66045234,125.84,125.81,8.00849376]
[1767144794365,0.66045234,125.84,125.81,11.92132003]
[1767144800163,0.66045234,125.84,125.81,0.06]
[1767144800771,0.66045234,125.84,125.8,31.73368813]
[1767144801153,0.66045234,125.84,125.8,31.79368813]
[1767144802276,0.66045234,125.84,125.8,27.88086186]
[1767144802466,0.66045234,125.84,125.8,31.79368813]
[1767144803677,0.66045234,125.84,125.81,3.91282627]
[1767144803873,3.91282627,125.86,125.82,3.91282627]
[1767144804057,18.43282627,125.87,125.83,4.58282627]
[1767144804261,14.52,125.87,125.85,7.94596742]
[1767144804743,7.94247548,125.91,125.85,7.94596742]
[1767144804949,3.91282627,125.89,125.85,7.94596742]
[1767144805148,5.94823226,125.88,125.85,7.94596742]
[1767144805464,3.91282627,125.89,125.85,7.94596742]
[1767144805769,5.94784678,125.88,125.85,7.94596742]
[1767144805971,0.69,125.88,125.85,7.94596742]
[1767144815879,0.69,125.88,125.85,8.61596742]
[1767144816060,0.69,125.87,125.85,7.94596742]
[1767144824979,0.69,125.87,125.85,8.61596742]
[1767144825297,0.69,125.87,125.85,7.94596742]
[1767144828179,0.72,125.86,125.82,24.45144762]
[1767144828405,0.72,125.86,125.83,7.94688266]
[1767144828771,0.72,125.86,125.83,8.61688266]
[1767144828973,4.63282627,125.86,125.83,8.61688266]
[1767144829490,0.72,125.86,125.83,8.61688266]
[1767144831689,0.72,125.86,125.83,8.61713254]
[1767144832389,6.68851696,125.9,125.79,0.67]
[1767144832685,4.53282627,125.87,125.83,12.5300251]
[1767144832871,5.95459075,125.86,125.83,12.5300251]
[1767144833064,4.53282627,125.87,125.83,12.5300251]
[1767144833390,6.57420802,125.86,125.83,12.5300251]
[1767144833685,0.62,125.86,125.83,12.5300251]
[1767144834195,0.62,125.87,125.84,0.67]
[1767144836388,0.62,125.87,125.81,19.86986816]
[1767144836566,0.62,125.87,125.83,4.58282627]
[1767144836972,0.62,125.87,125.84,0.67]
[1767144838375,14.52,125.88,125.85,0.67]
[1767144838892,15.14,125.88,125.85,0.67]
[1767144840971,15.14,125.89,125.86,0.66]
[1767144841177,6.57309809,125.88,125.85,8.6059057]
[1767144841477,0.62,125.88,125.85,8.6059057]
[1767144843493,4.53282627,125.88,125.85,8.6059057]
[1767144843819,0.62,125.87,125.84,7.94641848]
[1767144843983,4.53282627,125.87,125.84,8.60641848]
[1767144844179,0.62,125.87,125.84,8.60641848]
[1767144845499,0.62,125.89,125.85,0.66]
[1767144845801,5.95527843,125.88,125.85,0.66]
[1767144845972,0.62,125.88,125.85,0.66]
[1767144848011,4.53282627,125.88,125.85,0.66]
[1767144848194,5.95733183,125.87,125.85,0.66]
[1767144848397,4.53282627,125.88,125.85,0.66]
[1767144848598,5.95733844,125.87,125.85,0.66]
[1767144848800,4.53282627,125.88,125.85,0.66]
[1767144849103,5.95733844,125.87,125.85,0.66]
[1767144849285,4.53282627,125.88,125.85,0.66]
[1767144849485,5.95742552,125.87,125.85,0.66]
[1767144849704,4.53282627,125.88,125.85,0.66]
[1767144849998,5.95742394,125.87,125.85,0.66]
[1767144850204,4.53282627,125.88,125.85,0.66]
[1767144850481,5.95741785,125.87,125.85,0.66]
[1767144850681,4.53282627,125.88,125.85,0.66]
[1767144850984,5.95741626,125.87,125.85,0.66]
[1767144851190,4.53282627,125.88,125.85,0.66]
[1767144851396,5.95741068,125.87,125.85,0.66]
[1767144851619,4.53282627,125.88,125.85,0.66]
[1767144851791,5.9574091,125.87,125.85,0.66]
[1767144851995,4.53282627,125.88,125.85,0.66]
[1767144852304,5.95741068,125.87,125.85,0.66]
[1767144852495,4.53282627,125.88,125.85,0.66]
[1767144852680,15.14,125.89,125.86,0.66]
[1767144852884,5.95725634,125.88,125.86,0.66]
[1767144853185,15.14,125.89,125.86,0.66]
[1767144853384,5.95733326,125.88,125.86,0.66]
[1767144853600,15.14,125.89,125.86,0.66]
[1767144853815,5.95733326,125.88,125.86,0.66]
[1767144854018,15.14,125.89,125.86,0.66]
[1767144854192,5.95733168,125.88,125.86,8.60507481]
[1767144854504,14.52,125.89,125.86,8.60507481]
[1767144854806,5.95697228,125.88,125.86,8.60507481]
[1767144854987,15.14,125.89,125.86,8.60507481]
[1767144855189,6.57697386,125.88,125.86,7.94507481]
[1767144855394,0.62,125.88,125.86,7.94507481]
[1767144857610,0.62,125.89,125.86,8.60507481]
[1767144857811,5.95680773,125.88,125.86,8.60507481]
[1767144858109,15.14,125.9,125.87,0.66]
[1767144858432,5.95658601,125.89,125.87,0.66]
[1767144858616,15.14,125.9,125.87,0.66]
[1767144859588,3.12249315,125.89,125.87,0.66]
[1767144859790,3.12249315,125.89,125.86,8.60513363]
[1767144860814,0.62,125.89,125.86,8.60513363]
[1767144861111,0.59075441,125.89,125.86,8.60513363]
[1767144862110,0.56030097,125.89,125.86,8.60513363]
[1767144862307,14.52,125.9,125.87,0.66]
[1767144862509,17.02249315,125.9,125.86,8.60513363]
[1767144863426,14.52,125.9,125.86,8.60513363]
[1767144863616,0.1,125.92,125.88,0.66]
[1767144863917,15.08,125.91,125.88,0.66]
[1767144864215,14.52,125.91,125.88,7.9437436]
[1767144864517,0.66,125.92,125.89,0.66]
[1767144865404,0.1,125.92,125.89,0.66]
[1767144865716,0.66,125.92,125.89,0.66]
[1767144866520,0.66,125.92,125.89,8.60330609]
[1767144871419,0.1,125.92,125.9,0.66]
[1767144872416,0.1,125.92,125.91,0.66]
[1767144872619,0.06968812,125.92,125.91,0.66]
[1767144872925,0.06968812,125.92,125.9,8.60280179]
[1767144873704,0.04,125.92,125.9,8.60280179]
[1767144874211,2.54249315,125.92,125.9,0.66]
[1767144874409,0.04,125.92,125.9,0.66]
[1767144874902,0.00968813,125.92,125.9,0.66]
[1767144875406,0.00968813,125.92,125.9,8.60281147]
[1767144877823,0.00968813,125.92,125.91,0.66]
[1767144878024,0.00968813,125.92,125.9,7.94281147]
[1767144878227,0.00968813,125.92,125.9,8.60281147]
[1767144882230,0.00968813,125.92,125.82,0.66]
[1767144882231,0.56,125.9,125.82,0.66]
[1767144882434,3.06249315,125.88,125.83,2.50249315]
[1767144882634,3.06249315,125.88,125.84,0.66]
[1767144882938,3.06249315,125.86,125.83,0.66]
[1767144883530,2.50249315,125.86,125.83,8.60714909]
[1767144883720,3.06249315,125.87,125.83,8.60714909]
[1767144885030,3.06249315,125.88,125.84,0.66]
[1767144885611,3.06249315,125.88,125.85,0.66]
[1767144887838,7.94282446,125.9,125.86,0.69]
[1767144887839,3.06249315,125.9,125.86,0.69]
[1767144889718,3.06249315,125.9,125.86,8.63486805]
[1767144890128,3.06249315,125.9,125.87,0.69]
[1767144892341,17.02249315,125.91,125.87,7.94441956]
[1767144892646,14.52,125.91,125.88,0.69]
[1767144893223,3.07218128,125.92,125.88,0.69]
[1767144893424,5.94168187,125.91,125.88,0.69]
[1767144893734,3.07218128,125.92,125.88,0.69]
[1767144893935,5.94168029,125.91,125.88,0.69]
[1767144894123,3.07218128,125.92,125.88,0.69]
[1767144894324,5.94214716,125.91,125.89,0.69]
[1767144894527,0.00968813,125.92,125.89,0.69]
[1767144895228,0.00968813,125.92,125.9,2.50249315]
[1767144895430,0.00968813,125.92,125.9,0.69]
[1767144899343,3.06249315,125.97,125.92,0.69]
[1767144899643,5.94143432,125.96,125.93,0.69]
[1767144899834,5.94143432,125.95,125.93,0.69]
[1767144900143,0.56,125.97,125.93,0.69]
[1767144900444,5.94106552,125.96,125.93,0.69]
[1767144900744,0.1,125.98,125.94,0.69]
[1767144901041,5.94073751,125.97,125.94,0.69]
[1767144901248,0.66,125.98,125.94,0.69]
[1767144901432,3.16249315,125.98,125.94,0.69]
[1767144901637,0.66,125.98,125.95,0.69]
[1767144901948,2.60249315,125.98,125.95,0.69]
[1767144902126,0.1,125.98,125.95,0.69]
[1767144902533,2.60249315,125.98,125.95,0.69]
[1767144903829,2.50249315,125.97,125.93,0.69]
[1767144904245,3.16249315,125.98,125.93,0.69]
[1767144907039,3.16249315,125.98,125.94,0.69]
[1767144907229,2.50249315,125.97,125.94,0.69]
[1767144907636,3.16249315,125.98,125.94,0.69]
[1767144908145,0.66,125.98,125.94,0.69]
[1767144908648,3.16249315,125.98,125.94,0.69]
[1767144908825,0.66,125.98,125.95,0.69]
[1767144909853,3.16249315,125.98,125.95,0.69]
[1767144911826,0.56,125.96,125.93,0.69]
[1767144912039,3.06249315,125.96,125.93,0.69]
[1767144913033,0.56,125.96,125.93,0.69]
[1767144913649,3.06249315,125.96,125.93,0.69]
[1767144914154,0.56,125.96,125.93,0.69]
[1767144915453,4.4657071,125.96,125.93,0.69]
[1767144915654,3.9057071,125.95,125.93,0.69]
[1767144915847,4.4657071,125.96,125.93,0.66]
[1767144916851,3.9057071,125.95,125.88,19.85981429]
[1767144917043,4.4957071,125.94,125.9,7.94242943]